fUSD/lending_fUSD_20251027
["ID","MTS","AMOUNT","RATE_DAILY","PERIOD"]
[392517738,1761599481859,-224.19679211,0.00036712,7]
[392517739,1761599481868,-500.0,0.00036712,7]
[392517740,1761599481878,-500.0,0.00036712,7]
[392517741,1761599481888,-578.95225357,0.00036712,7]
[392517742,1761599481898,-500.0,0.00036712,7]
[392517743,1761599481907,-510.33160234,0.00036712,7]
[392517744,1761599481916,-510.68993311,0.00036712,7]
[392517745,1761599481926,-500.0,0.00036712,7]
[392517746,1761599481936,-500.0,0.00036712,7]
[392517747,1761599481946,-393.44991415,0.00036712,7]
[392517748,1761599481956,-500.0,0.00036712,2]
[392517749,1761599481964,-604.56,0.00036712,7]
[392517750,1761599481974,-500.0,0.00036712,7]
[392517751,1761599481983,-500.0,0.00036712,7]
[392517752,1761599481991,-500.0,0.00036712,7]
[392517753,1761599482000,-500.0,0.00036712,7]
[392517754,1761599482010,-500.0,0.00036712,2]
[392517755,1761599482020,-500.0,0.00036712,7]
[392517756,1761599482030,-500.0,0.00036712,7]
[392517757,1761599482039,-500.0,0.00036712,7]
[392517758,1761599482050,-500.0,0.00036712,7]
[392517759,1761599482060,-500.0,0.00036712,7]
[392517760,1761599482071,-405.3942625,0.00036712,7]
[392517761,1761599482080,-500.0,0.00036712,7]
[392517762,1761599482089,-300.0,0.00036712,7]
[392517763,1761599482099,-500.0,0.00036712,7]
[392517764,1761599482108,-500.0,0.00036712,7]
[392517765,1761599482117,-500.0,0.00036712,7]
[392517766,1761599482126,-500.0,0.00036712,7]
[392517767,1761599482135,-500.0,0.00036712,7]
[392517768,1761599482144,-500.0,0.00036712,7]
[392517769,1761599482153,-171.95809511,0.00036712,7]
[392517770,1761599482162,-500.0,0.00036712,7]
[392517771,1761599482171,-500.0,0.00036712,7]
[392517772,1761599482180,-589.2,0.00036712,7]
[392517773,1761599482189,-500.0,0.00036712,7]
[392517774,1761599482198,-500.0,0.00036712,7]
[392517775,1761599482207,-500.0,0.00036712,7]
[392517776,1761599482216,-500.0,0.00036712,7]
[392517777,1761599482225,-500.0,0.00036712,7]
[392517778,1761599482235,-500.0,0.00036712,7]
[392517779,1761599482243,-500.0,0.00036712,7]
[392517780,1761599482253,-500.0,0.00036712,7]
[392517781,1761599482262,-500.0,0.00036712,7]
[392517782,1761599482271,-500.0,0.00036712,7]
[392517783,1761599482280,-1003.0,0.00036712,7]
[392517784,1761599482288,-500.0,0.00036712,7]
[392517785,1761599482298,-500.0,0.00036712,7]
[392517786,1761599482307,-500.0,0.00036712,7]
[392517787,1761599482316,-500.0,0.00036712,7]
[392517788,1761599482325,-500.0,0.00036712,7]
[392517789,1761599482334,-211.39431997,0.00036712,7]
[392517790,1761599482344,-500.0,0.00036712,7]
[392517791,1761599482353,-364.5409985,0.00036712,7]
[392517792,1761599482363,-500.0,0.00036712,7]
[392517793,1761599482372,-500.0,0.00036712,7]
[392517794,1761599482381,-500.0,0.00036712,7]
[392517795,1761599482390,-646.03005497,0.00036712,7]
[392517796,1761599482399,-500.0,0.00036712,7]
[392517797,1761599482408,-500.0,0.00036712,7]
[392517798,1761599482417,-500.0,0.00036712,7]
[392517799,1761599482426,-500.0,0.00036712,7]
[392517800,1761599482435,-576.01630345,0.00036712,7]
[392517801,1761599482444,-500.0,0.00036712,7]
[392517802,1761599482454,-500.0,0.00036712,7]
[392517803,1761599482463,-500.0,0.00036712,7]
[392517804,1761599482472,-500.0,0.00036712,7]
[392517805,1761599482481,-500.0,0.00036712,7]
[392517806,1761599482491,-500.0,0.00036712,7]
[392517807,1761599482500,-500.0,0.00036712,7]
[392517808,1761599482509,-733.13,0.00036712,7]
[392517809,1761599482519,-622.39117521,0.00036712,7]
[392517810,1761599482528,-500.0,0.00036712,7]
[392517811,1761599482537,-459.23984362,0.00036712,7]
[392517812,1761599482546,-500.0,0.00036712,7]
[392517813,1761599482555,-500.0,0.00036712,7]
[392517814,1761599482564,-500.0,0.00036712,7]
[392517815,1761599482573,-615.19271912,0.00036712,7]
[392517816,1761599482583,-1389.46,0.00036712,7]
[392517817,1761599482592,-500.0,0.00036712,7]
[392517818,1761599482602,-536.27399094,0.00036712,7]
[392517819,1761599482612,-500.0,0.00036712,7]
[392517820,1761599482621,-500.0,0.00036712,7]
[392517821,1761599482630,-500.0,0.00036712,7]
[392517822,1761599482639,-500.0,0.00036712,7]
[392517823,1761599482648,-500.0,0.00036712,7]
[392517824,1761599482657,-500.0,0.00036712,7]
[392517825,1761599482667,-357.07938291,0.00036712,7]
[392517826,1761599482676,-500.0,0.00036712,7]
[392517827,1761599482685,-500.0,0.00036712,7]
[392517828,1761599482695,-500.0,0.00036712,7]
[392517829,1761599482704,-500.0,0.00036712,7]
[392517830,1761599482712,-500.0,0.00036712,7]
[392517831,1761599482722,-500.0,0.00036712,7]
[392517832,1761599482731,-500.0,0.00036712,7]
[392517833,1761599482741,-500.0,0.00036712,7]
[392517834,1761599482750,-500.0,0.00036712,7]
[392517835,1761599482759,-500.0,0.00036712,7]
[392517836,1761599482768,-500.0,0.00036712,7]
[392517837,1761599482777,-2081.05,0.00036712,7]
[392517838,1761599482787,-500.0,0.00036712,7]
[392517839,1761599482796,-552.13,0.00036712,7]
[392517840,1761599482806,-500.0,0.00036712,7]
[392517841,1761599482819,-500.0,0.00036712,7]
[392517842,1761599482828,-500.0,0.00036712,7]
[392517843,1761599482849,-500.0,0.00036712,7]
[392517844,1761599482858,-524.28602981,0.00036712,7]
[392517845,1761599482868,-500.0,0.00036712,7]
[392517846,1761599482878,-215.57912646,0.00036712,7]
[392517847,1761599482888,-500.0,0.00036712,7]
[392517848,1761599482897,-188.64752821,0.00036712,7]
[392517849,1761599482907,-500.0,0.00036712,7]
[392517850,1761599482916,-500.0,0.00036712,7]
[392517851,1761599482925,-611.99120845,0.00036712,7]
[392517852,1761599482935,-621.14470127,0.00036712,7]
[392517853,1761599482945,-500.0,0.00036712,7]
[392517854,1761599482954,-584.32,0.00036712,2]
[392517855,1761599482964,-314.85980402,0.00036712,7]
[392517856,1761599482973,-3296.25,0.00036712,7]
[392517857,1761599482983,-500.0,0.00036712,7]
[392517858,1761599482992,-500.0,0.00036712,7]
[392517859,1761599483001,-500.0,0.00036712,7]
[392517860,1761599483011,-500.0,0.00036712,7]
[392517861,1761599483021,-601.41347589,0.00036712,7]
[392517862,1761599483030,-500.0,0.00036712,7]
[392517863,1761599483039,-500.0,0.00036712,7]
[392517864,1761599483049,-500.0,0.00036712,7]
[392517865,1761599483059,-509.64397366,0.00036712,7]
[392517866,1761599483068,-500.0,0.00036712,7]
[392517867,1761599483078,-500.0,0.00036712,7]
[392517868,1761599483087,-500.0,0.00036712,7]
[392517869,1761599483097,-500.0,0.00036712,7]
[392517870,1761599483107,-3275.98,0.00036712,7]
[392517871,1761599483117,-500.0,0.00036712,7]
[392517872,1761599483128,-500.0,0.00036712,7]
[392517873,1761599483137,-500.0,0.00036712,7]
[392517874,1761599483146,-500.0,0.00036712,7]
[392517875,1761599483156,-500.0,0.00036712,7]
[392517876,1761599483165,-500.0,0.00036712,7]
[392517877,1761599483175,-500.0,0.00036712,7]
[392517878,1761599483184,-442.51023673,0.00036712,7]
[392517879,1761599483194,-500.0,0.00036712,7]
[392517880,1761599483203,-500.0,0.00036712,7]
[392517881,1761599483212,-500.0,0.00036712,7]
[392517882,1761599483222,-561.96,0.00036712,7]
[392517883,1761599483231,-500.0,0.00036712,7]
[392517884,1761599483240,-312.89949347,0.00036712,7]
[392517885,1761599483250,-500.0,0.00036712,7]
[392517886,1761599483260,-549.65357925,0.00036712,7]
[392517887,1761599483269,-500.0,0.00036712,7]
[392517888,1761599483279,-500.0,0.00036712,7]
[392517889,1761599483289,-500.0,0.00036712,7]
[392517890,1761599483298,-510.41572586,0.00036712,7]
[392517891,1761599483307,-500.0,0.00036712,7]
[392517892,1761599483317,-500.0,0.00036712,7]
[392517893,1761599483326,-500.0,0.00036712,7]
[392517894,1761599483336,-500.0,0.00036712,7]
[392517895,1761599483346,-500.0,0.00036712,7]
[392517896,1761599483356,-500.0,0.00036712,7]
[392517897,1761599483365,-521.00003281,0.00036712,7]
[392517898,1761599483375,-647.12722952,0.00036712,7]
[392517899,1761599483384,-500.0,0.00036712,7]
[392517900,1761599483394,-500.0,0.00036712,7]
[392517901,1761599483403,-500.0,0.00036712,7]
[392517902,1761599483412,-3266.96,0.00036712,7]
[392517903,1761599483422,-937.85,0.00036712,7]
[392517904,1761599483432,-500.0,0.00036712,7]
[392517905,1761599483441,-500.0,0.00036712,7]
[392517906,1761599483451,-507.19430443,0.00036712,7]
[392517907,1761599483461,-565.98554859,0.00036712,7]
[392517908,1761599483470,-500.0,0.00036712,7]
[392517909,1761599483480,-224.14694046,0.00036712,7]
[392517910,1761599483490,-3363.04,0.00036712,7]
[392517911,1761599483499,-500.0,0.00036712,7]
[392517912,1761599483509,-1000.0,0.00036712,7]
[392517913,1761599483519,-500.0,0.00036712,7]
[392517914,1761599483528,-872.86,0.00036712,7]
[392517915,1761599483538,-818.4,0.00036712,7]
[392517916,1761599483548,-500.0,0.00036712,7]
[392517917,1761599483557,-500.0,0.00036712,7]
[392517918,1761599483567,-500.0,0.00036712,7]
[392517919,1761599483576,-500.0,0.00036712,7]
[392517920,1761599483585,-524.73413396,0.00036712,7]
[392517921,1761599483594,-500.0,0.00036712,7]
[392517922,1761599483604,-279.14828542,0.00036712,7]
[392517923,1761599483613,-500.0,0.00036712,7]
[392517924,1761599483623,-500.0,0.00036712,7]
[392517925,1761599483632,-546.75,0.00036712,7]
[392517926,1761599483641,-300.0,0.00036712,2]
[392517927,1761599483650,-2104.75,0.00036712,7]
[392517928,1761599483659,-500.0,0.00036712,7]
[392517929,1761599483668,-500.0,0.00036712,7]
[392517930,1761599483678,-500.0,0.00036712,7]
[392517931,1761599483687,-627.55787946,0.00036712,7]
[392517932,1761599483696,-508.24843192,0.00036712,7]
[392517933,1761599483706,-509.76255856,0.00036712,7]
[392517934,1761599483715,-505.56018551,0.00036712,7]
[392517935,1761599483725,-500.0,0.00036712,7]
[392517936,1761599483734,-500.0,0.00036712,7]
[392517937,1761599483743,-500.0,0.00036712,7]
[392517938,1761599483756,-3276.13,0.00036712,7]
[392517939,1761599483765,-500.0,0.00036712,7]
[392517940,1761599483775,-3263.91,0.00036712,7]
[392517941,1761599483785,-500.0,0.00036712,7]
[392517942,1761599483795,-541.24947505,0.00036712,7]
[392517943,1761599483804,-500.0,0.00036712,7]
[392517944,1761599483817,-586.26356313,0.00036712,7]
[392517945,1761599483827,-639.62,0.00036712,7]
[392517946,1761599483836,-500.0,0.00036712,7]
[392517947,1761599483846,-500.0,0.00036712,7]
[392517948,1761599483855,-290.91607871,0.00036712,7]
[392517949,1761599483864,-500.0,0.00036712,7]
[392517950,1761599483874,-500.0,0.00036712,7]
[392517951,1761599483883,-500.0,0.00036712,7]
[392517952,1761599483893,-500.0,0.00036712,7]
[392517953,1761599483903,-500.0,0.00036712,7]
[392517954,1761599483912,-500.0,0.00036712,7]
[392517955,1761599483921,-500.0,0.00036712,7]
[392517956,1761599483932,-500.0,0.00036712,7]
[392517957,1761599483941,-500.0,0.00036712,7]
[392517958,1761599483950,-500.0,0.00036712,2]
[392517959,1761599483959,-500.0,0.00036712,7]
[392517960,1761599483968,-289.47169174,0.00036712,7]
[392517961,1761599483978,-199.20683109,0.00036712,7]
[392517962,1761599483987,-500.0,0.00036712,7]
[392517963,1761599483996,-500.0,0.00036712,7]
[392517964,1761599484006,-500.0,0.00036712,7]
[392517965,1761599484015,-1123.72,0.00036712,7]
[392517966,1761599484025,-500.0,0.00036712,7]
[392517967,1761599484034,-217.76561128,0.00036712,7]
[392517968,1761599484044,-500.0,0.00036712,7]
[392517969,1761599484054,-538.96,0.00036712,7]
[392517970,1761599484063,-500.0,0.00036712,7]
[392517971,1761599484073,-500.0,0.00036712,7]
[392517972,1761599484082,-500.0,0.00036712,7]
[392517973,1761599484091,-500.0,0.00036712,7]
[392517974,1761599484101,-500.0,0.00036712,7]
[392517975,1761599484110,-500.0,0.00036712,7]
[392517976,1761599484120,-500.0,0.00036712,7]
[392517977,1761599484130,-500.0,0.00036712,7]
[392517978,1761599484140,-500.0,0.00036712,7]
[392517979,1761599484150,-766.43,0.00036712,7]
[392517980,1761599484160,-500.0,0.00036712,7]
[392517981,1761599484170,-528.20752287,0.00036712,7]
[392517982,1761599484361,-627.66064547,0.00036712,7]
[392517983,1761599484370,-500.0,0.00036712,7]
[392517984,1761599484380,-500.0,0.00036712,7]
[392517985,1761599484389,-500.0,0.00036712,7]
[392517986,1761599484399,-500.0,0.00036712,7]
[392517987,1761599484408,-500.0,0.00036712,7]
[392517988,1761599484417,-574.89,0.00036712,7]
[392517989,1761599484427,-3271.68,0.00036712,7]
[392517990,1761599484436,-834.46,0.00036712,7]
[392517991,1761599484446,-513.18,0.00036712,7]
[392517992,1761599484458,-500.0,0.00036712,7]
[392517993,1761599484468,-500.0,0.00036712,7]
[392517994,1761599484477,-442.45351026,0.00036712,7]
[392517995,1761599484487,-500.0,0.00036712,7]
[392517996,1761599484498,-500.0,0.00036712,7]
[392517997,1761599484507,-500.0,0.00036712,7]
[392517998,1761599484517,-500.0,0.00036712,7]
[392517999,1761599484527,-989.07,0.00036712,7]
[392518000,1761599484537,-490.3493997,0.00036712,7]
[392518001,1761599484547,-500.0,0.00036712,7]
[392518002,1761599484556,-300.0,0.00036712,2]
[392518003,1761599484566,-810.73,0.00036712,7]
[392518004,1761599484575,-542.0217345,0.00036712,7]
[392518005,1761599484584,-500.0,0.00036712,7]
[392518006,1761599484594,-500.0,0.00036712,7]
[392518007,1761599484604,-500.0,0.00036712,7]
[392518008,1761599484614,-500.0,0.00036712,7]
[392518009,1761599484624,-500.0,0.00036712,7]
[392518010,1761599484634,-500.0,0.00036712,7]
[392518011,1761599484644,-500.0,0.00036712,7]
[392518012,1761599484653,-3301.19,0.00036712,7]
[392518013,1761599484663,-500.0,0.00036712,7]
[392518014,1761599484673,-515.26632735,0.00036712,7]
[392518015,1761599484682,-500.0,0.00036712,7]
[392518016,1761599484692,-500.0,0.00036712,7]
[392518017,1761599484704,-500.0,0.00036712,7]
[392518018,1761599484715,-500.0,0.00036712,7]
[392518019,1761599484725,-500.0,0.00036712,7]
[392518020,1761599484734,-500.0,0.00036712,7]
[392518021,1761599484744,-500.0,0.00036712,7]
[392518022,1761599484753,-500.0,0.00036712,7]
[392518023,1761599484762,-500.0,0.00036712,7]
[392518024,1761599484771,-500.0,0.00036712,7]
[392518025,1761599484780,-500.0,0.00036712,7]
[392518026,1761599484789,-500.0,0.00036712,7]
[392518027,1761599484798,-500.0,0.00036712,7]
[392518028,1761599484807,-506.96336036,0.00036712,7]
[392518029,1761599484817,-3394.61,0.00036712,7]
[392518030,1761599484827,-500.0,0.00036712,7]
[392518031,1761599484837,-500.0,0.00036712,7]
[392518032,1761599484847,-500.0,0.00036712,7]
[392518033,1761599484856,-500.0,0.00036712,7]
[392518034,1761599484866,-2926.76,0.00036712,7]
[392518035,1761599484875,-500.0,0.00036712,7]
[392518036,1761599484884,-500.0,0.00036712,7]
[392518037,1761599484894,-500.0,0.00036712,7]
[392518038,1761599484905,-500.0,0.00036712,7]
[392518039,1761599484915,-767.06,0.00036712,7]
[392518040,1761599484926,-500.0,0.00036712,7]
[392518041,1761599484937,-500.0,0.00036712,7]
[392518042,1761599484948,-540.55,0.00036712,7]
[392518043,1761599484958,-500.0,0.00036712,7]
[392518044,1761599484968,-500.0,0.00036712,7]
[392518045,1761599484978,-500.0,0.00036712,7]
[392518046,1761599484988,-1154.29,0.00036712,7]
[392518047,1761599484998,-3388.64,0.00036712,7]
[392518048,1761599485008,-500.0,0.00036712,7]
[392518049,1761599485018,-500.0,0.00036712,7]
[392518050,1761599485028,-500.0,0.00036712,7]
[392518051,1761599485039,-500.0,0.00036712,7]
[392518052,1761599485050,-500.0,0.00036712,7]
[392518053,1761599485061,-500.0,0.00036712,7]
[392518054,1761599485072,-500.0,0.00036712,7]
[392518055,1761599485081,-711.06,0.00036712,7]
[392518056,1761599485091,-500.0,0.00036712,7]
[392518057,1761599485100,-296.74401107,0.00036712,7]
[392518058,1761599485109,-500.0,0.00036712,7]
[392518059,1761599485119,-500.0,0.00036712,7]
[392518060,1761599485129,-582.81908988,0.00036712,7]
[392518061,1761599485139,-500.0,0.00036712,7]
[392518062,1761599485148,-500.0,0.00036712,7]
[392518063,1761599485157,-500.0,0.00036712,7]
[392518064,1761599485166,-500.0,0.00036712,7]
[392518065,1761599485175,-515.8324997,0.00036712,7]
[392518066,1761599485184,-3001.9,0.00036712,7]
[392518067,1761599485193,-500.0,0.00036712,7]
[392518068,1761599485203,-1918.79,0.00036712,7]
[392518069,1761599485215,-500.0,0.00036712,7]
[392518070,1761599485227,-500.0,0.00036712,7]
[392518071,1761599485237,-500.0,0.00036712,7]
[392518072,1761599485246,-500.0,0.00036712,7]
[392518073,1761599485256,-500.0,0.00036712,7]
[392518074,1761599485266,-500.0,0.00036712,7]
[392518075,1761599485276,-500.0,0.00036712,7]
[392518076,1761599485286,-500.0,0.00036712,7]
[392518077,1761599485295,-567.14541344,0.00036712,7]
[392518078,1761599485304,-1559.73,0.00036712,7]
[392518079,1761599485313,-500.0,0.00036712,7]
[392518080,1761599485323,-3341.12,0.00036712,7]
[392518081,1761599485332,-500.0,0.00036712,7]
[392518082,1761599485343,-500.0,0.00036712,7]
[392518083,1761599485353,-500.0,0.00036712,7]
[392518084,1761599485362,-984.63,0.00036712,7]
[392518085,1761599485372,-500.0,0.00036712,7]
[392518086,1761599485381,-500.0,0.00036712,7]
[392518087,1761599485391,-500.0,0.00036712,7]
[392518088,1761599485401,-500.0,0.00036712,7]
[392518089,1761599485411,-2563.99,0.00036712,7]
[392518090,1761599485420,-548.50507784,0.00036712,7]
[392518091,1761599485430,-500.0,0.00036712,7]
[392518092,1761599485440,-500.0,0.00036712,7]
[392518093,1761599485449,-586.40238947,0.00036712,7]
[392518094,1761599485459,-500.0,0.00036712,7]
[392518095,1761599485469,-500.0,0.00036712,7]
[392518096,1761599485478,-500.0,0.00036712,7]
[392518097,1761599485488,-500.0,0.00036712,2]
[392518098,1761599485498,-500.0,0.00036712,7]
[392518099,1761599485508,-500.0,0.00036712,2]
[392518100,1761599485519,-500.0,0.00036712,7]
[392518101,1761599485530,-2556.31,0.00036712,7]
[392518102,1761599485540,-501.83812961,0.00036712,2]
[392518103,1761599485550,-622.42062404,0.00036712,7]
[392518104,1761599485559,-500.0,0.00036712,2]
[392518105,1761599485569,-500.0,0.00036712,7]
[392518106,1761599485579,-401.93209831,0.00036712,7]
[392518107,1761599485589,-693.42,0.00036712,7]
[392518108,1761599485598,-500.0,0.00036712,7]
[392518109,1761599485607,-449.08804247,0.00036712,7]
[392518110,1761599485618,-727.56,0.00036712,7]
[392518111,1761599485627,-620.83,0.00036712,7]
[392518112,1761599485638,-1649.98,0.00036712,7]
[392518113,1761599485647,-500.0,0.00036712,7]
[392518114,1761599485657,-500.0,0.00036712,7]
[392518115,1761599485667,-633.83,0.00036712,7]
[392518116,1761599485676,-500.0,0.00036712,7]
[392518117,1761599485686,-500.0,0.00036712,7]
[392518118,1761599485695,-500.0,0.00036712,7]
[392518119,1761599485705,-500.0,0.00036712,7]
[392518120,1761599485715,-857.09,0.00036712,7]
[392518121,1761599485725,-8446.87034481,0.00036721,2]
[392518122,1761599485735,-152.43,0.00036757,60]
[392518123,1761599485744,-150.31,0.00036761,60]
[392518124,1761599485753,-671.95735868,0.00036777,2]
[392518125,1761599485763,-3246.8303384,0.000368,2]
[392518126,1761599485773,-5770.73,0.000368,14]
[392518127,1761599485783,-1100.0,0.000368,13]
[392518128,1761599485792,-4584.08483237,0.000368,2]
[392518129,1761599485801,-326.87879581,0.000368,2]
[392518130,1761599485810,-300.0,0.000368,50]
[392518131,1761599485823,-300.0,0.000368,50]
[392518132,1761599485832,-300.0,0.000368,50]
[392518133,1761599485841,-300.0,0.000368,50]
[392518134,1761599485852,-300.0,0.000368,50]
[392518135,1761599485861,-9204.15908839,0.00036828,2]
[392518136,1761599485871,-3490.0,0.00036856,2]
[392518137,1761599485880,-558.0,0.00036856,2]
[392518138,1761599485890,-152.43,0.00036857,60]
[392518139,1761599485900,-5843.36249435,0.000369,30]
[392518140,1761599485910,-100000.0,0.000369,30]
[392518141,1761599485919,-1103.35147338,0.000369,120]
[392518142,1761599485929,-4584.08483237,0.00036903,2]
[392518143,1761599485939,-326.87879579,0.00036903,2]
[392518144,1761599485947,-1000.0,0.00036939,2]
[392518145,1761599485956,-152.43,0.00036957,60]
[392518146,1761599485965,-500.0,0.00036986,120]
[392518147,1761599485974,-500.0,0.00036986,7]
[392518148,1761599485987,-500.0,0.00036986,7]
[392518149,1761599485996,-500.0,0.00036986,7]
[392518150,1761599486005,-1536.05,0.00036986,7]
[392518151,1761599486014,-500.0,0.00036986,7]
[392518152,1761599486023,-554.66811393,0.00036986,7]
[392518153,1761599486032,-500.0,0.00036986,7]
[392518154,1761599486040,-500.0,0.00036986,7]
[392518155,1761599486051,-500.0,0.00036986,2]
[392518156,1761599486061,-604.56,0.00036986,7]
[392518157,1761599486071,-500.0,0.00036986,7]
[392518158,1761599486081,-500.0,0.00036986,7]
[392518159,1761599486091,-500.0,0.00036986,7]
[392518160,1761599486101,-500.0,0.00036986,7]
[392518161,1761599486110,-500.0,0.00036986,2]
[392518162,1761599486119,-500.0,0.00036986,7]
[392518163,1761599486127,-500.0,0.00036986,7]
[392518164,1761599486136,-500.0,0.00036986,7]
[392518165,1761599486145,-500.0,0.00036986,7]
[392518166,1761599486154,-500.0,0.00036986,7]
[392518167,1761599486164,-500.0,0.00036986,7]
[392518168,1761599486173,-300.0,0.00036986,7]
[392518169,1761599486182,-172.33192125,0.00036986,7]
[392518170,1761599486191,-584.7351788,0.00036986,7]
[392518171,1761599486200,-500.0,0.00036986,7]
[392518172,1761599486209,-227.75453709,0.00036986,7]
[392518173,1761599486218,-548.47857871,0.00036986,7]
[392518174,1761599486227,-598.0541663,0.00036986,7]
[392518175,1761599486236,-500.0,0.00036986,7]
[392518176,1761599486244,-500.0,0.00036986,7]
[392518177,1761599486254,-589.2,0.00036986,7]
[392518178,1761599486263,-500.0,0.00036986,7]
[392518179,1761599486271,-500.0,0.00036986,7]
[392518180,1761599486280,-441.86125194,0.00036986,7]
[392518181,1761599486289,-483.32459463,0.00036986,7]
[392518182,1761599486298,-500.0,0.00036986,7]
[392518183,1761599486307,-161.68979065,0.00036986,7]
[392518184,1761599486316,-500.0,0.00036986,7]
[392518185,1761599486325,-512.68453438,0.00036986,7]
[392518186,1761599486334,-518.36693917,0.00036986,7]
[392518187,1761599486343,-500.0,0.00036986,7]
[392518188,1761599486352,-1003.0,0.00036986,7]
[392518189,1761599486362,-500.0,0.00036986,7]
[392518190,1761599486370,-500.0,0.00036986,7]
[392518191,1761599486379,-500.0,0.00036986,7]
[392518192,1761599486388,-500.0,0.00036986,7]
[392518193,1761599486397,-500.0,0.00036986,7]
[392518194,1761599486406,-500.0,0.00036986,7]
[392518195,1761599486415,-513.53685378,0.00036986,7]
[392518196,1761599486425,-488.750875,0.00036986,7]
[392518197,1761599486434,-517.70315545,0.00036986,7]
[392518198,1761599486443,-163.26997211,0.00036986,7]
[392518199,1761599486453,-500.0,0.00036986,7]
[392518200,1761599486462,-500.0,0.00036986,7]
[392518201,1761599486471,-546.00347998,0.00036986,7]
[392518202,1761599486480,-500.0,0.00036986,7]
[392518203,1761599486489,-500.0,0.00036986,7]
[392518204,1761599486499,-518.83828719,0.00036986,7]
[392518205,1761599486507,-500.0,0.00036986,7]
[392518206,1761599486517,-500.0,0.00036986,7]
[392518207,1761599486526,-500.0,0.00036986,7]
[392518208,1761599486535,-733.13,0.00036986,7]
[392518209,1761599486545,-500.0,0.00036986,7]
[392518210,1761599486554,-500.0,0.00036986,7]
[392518211,1761599486563,-500.0,0.00036986,7]
[392518212,1761599486572,-520.84558391,0.00036986,7]
[392518213,1761599486581,-1389.46,0.00036986,7]
[392518214,1761599486590,-500.0,0.00036986,7]
[392518215,1761599486599,-521.53279015,0.00036986,7]
[392518216,1761599486609,-520.12986525,0.00036986,7]
[392518217,1761599486618,-512.57283151,0.00036986,7]
[392518218,1761599486627,-500.0,0.00036986,7]
[392518219,1761599486635,-500.0,0.00036986,7]
[392518220,1761599486644,-500.0,0.00036986,7]
[392518221,1761599486655,-500.0,0.00036986,7]
[392518222,1761599486665,-507.3890556,0.00036986,7]
[392518223,1761599486674,-516.00452764,0.00036986,7]
[392518224,1761599486685,-353.65164445,0.00036986,7]
[392518225,1761599486696,-520.0580191,0.00036986,7]
[392518226,1761599486708,-500.0,0.00036986,7]
[392518227,1761599486718,-529.62307436,0.00036986,7]
[392518228,1761599486727,-500.0,0.00036986,7]
[392518229,1761599486737,-2081.05,0.00036986,7]
[392518230,1761599486747,-500.0,0.00036986,7]
[392518231,1761599486756,-550.58418931,0.00036986,7]
[392518232,1761599486767,-552.13,0.00036986,7]
[392518233,1761599486778,-518.38831279,0.00036986,7]
[392518234,1761599486789,-512.99111468,0.00036986,7]
[392518235,1761599486799,-500.0,0.00036986,7]
[392518236,1761599486809,-510.96664848,0.00036986,7]
[392518237,1761599486820,-553.83834342,0.00036986,7]